{"text_format":"1","workbook":"xlsx","n_sheets":1,"sheets":["سبتمبر2023"],"not_rendered":{"charts":0,"images":0,"macros":1,"external_links":0,"defined_names":0,"comments":0,"pivot_tables":0},"unopened":[],"bounds":{"document_bytes":16777216,"sheet_cells":100000,"rows_first":2000,"rows_last":500,"rows_between":2000,"halvings":0,"cell_chars":16384,"cell_head_chars":4096},"cells_cut":0,"cells_raw":0,"read":"whole","date_system":"1900"}

{"sheet":"سبتمبر2023","index":0,"n_rows":199,"n_cols":15,"rows_kept":199,"cut":false,"hidden":false,"merged":[[0,14,2,14],[1,2,2,2],[1,4,2,4],[1,11,2,11],[1,13,2,13],[0,7,2,7],[0,8,2,8],[0,9,2,9],[0,10,2,10],[0,11,0,13],[0,0,2,0],[0,1,2,1],[0,2,0,4],[0,5,2,5],[0,6,2,6]]}
["رقم السيارة","نوع السيارة","تاريخ ووقت تسليم السيارة",null,null,"جهة الطالبة للحركة","الغرض من الاستخدام والحركة","إسم مستلم السيارة","قراءة العداد قبل المهمة","قراءة العداد بعد المهمة","المسافة المقطوعة","تاريخ ووقت الرجوع السيارة",null,null,"الموظف المعني بالتسجيل"]
[null,null,"التاريخ","اليوم ","الوقت",null,null,null,null,null,null,"التاريخ","يوم","الوقت"]
[]
[111,{"$f":"IF(A4=65,\"بيكاب نيسان\",IF(A4=93,\"برادو\",IF(A4=96,\"جالنت\",IF(A4=97,\"برادو\",IF(A4=111,\"برادو\",IF(A4=116,\"نيسان بافندر\",IF(A4=118,\"كرولا\",IF(A4=125,\"نيسان بافندر\",IF(A4=134,\"بيكاب مستوبيشي\",IF(A4=153,\"باص نيسان\",IF(A4=162,\"ابيكاء شفروليه\",IF(A4=233,\"كيا سوبرتاج\",IF(A4=267,\"باص تويوتا\",\"\")))))))))))))","v":"برادو"},{"$f":"IF(A4<>\"\",TODAY(),\"\")","v":"2023-09-07"},{"$f":"IF(C4<>\"\",TEXT(C4,\"ddd\"),\"\")","v":"الخميس"},{"$f":"IF(A4<>\"\",IF(E4=\"\",NOW(),E4),\"\")","v":45168.315963773151},null,null,1,null,55,{"$f":"J4-I4","v":55},null,{"$f":"TEXT(L4,\"ddd\")","v":"السبت"},{"$f":"IF(L4<>\"\",IF(N4=\"\",NOW(),N4),\"\")","v":""}]
[97,{"$f":"IF(A5=65,\"بيكاب نيسان\",IF(A5=93,\"برادو\",IF(A5=96,\"جالنت\",IF(A5=97,\"برادو\",IF(A5=111,\"برادو\",IF(A5=116,\"نيسان بافندر\",IF(A5=118,\"كرولا\",IF(A5=125,\"نيسان بافندر\",IF(A5=134,\"بيكاب مستوبيشي\",IF(A5=153,\"باص نيسان\",IF(A5=162,\"ابيكاء شفروليه\",IF(A5=233,\"كيا سوبرتاج\",IF(A5=267,\"باص تويوتا\",\"\")))))))))))))","v":"برادو"},{"$f":"IF(A5<>\"\",TODAY(),\"\")","v":"2023-09-07"},{"$f":"IF(C5<>\"\",TEXT(C5,\"ddd\"),\"\")","v":"الخميس"},{"$f":"IF(A5<>\"\",IF(E5=\"\",NOW(),E5),\"\")","v":45169.316056944444},null,null,1,null,55,{"$f":"J5-I5","v":55},{"$f":"IF(K5>0,TODAY(),\"\")","v":"2023-09-07"},{"$f":"TEXT(L5,\"ddd\")","v":"الخميس"},{"$f":"IF(L5<>\"\",IF(N5=\"\",NOW(),N5),\"\")","v":45163.005890856482}]
[96,"جالنت","2023-09-07","الخميس",45169.316099421296,null,null,"z",null,55,{"$f":"J6-I6","v":55},"2023-09-07","الخميس",45163.005918402778]
[118,{"$f":"IF(A7=65,\"بيكاب نيسان\",IF(A7=93,\"برادو\",IF(A7=96,\"جالنت\",IF(A7=97,\"برادو\",IF(A7=111,\"برادو\",IF(A7=116,\"نيسان بافندر\",IF(A7=118,\"كرولا\",IF(A7=125,\"نيسان بافندر\",IF(A7=134,\"بيكاب مستوبيشي\",IF(A7=153,\"باص نيسان\",IF(A7=162,\"ابيكاء شفروليه\",IF(A7=233,\"كيا سوبرتاج\",IF(A7=267,\"باص تويوتا\",\"\")))))))))))))","v":"كرولا"},"2023-09-07","الخميس",45173.351099537038,null,null,null,null,66,66,"2023-09-07","الخميس",45163.580843402779]
[null,"","","","","z",null,null,null,77,77,"2023-09-07","الخميس",45165.513703472221]
[null,"","","","",null,null,null,null,88,{"$f":"J9-I9","v":88},"2023-09-07","الخميس",45165.515442476855]
[111,"برادو","2023-09-05","الثلاثاء","16:32:00",null,null,null,null,99,99,"2023-09-07","الخميس",45165.515478125002]
[null,"","","","",null,null,null,null,11,11,"2023-09-07","الخميس",45165.574639236111]
[null,"","","","",null,null,null,null,1,{"$f":"J12-I12","v":1},{"$f":"IF(K12>0,TODAY(),\"\")","v":"2023-09-07"},"الخميس",45167.342089699072]
[null,"","","","",null,null,null,null,111,111,"2023-09-07","الخميس",45172.327115972221]
[null,"","","","",null,null,null,null,45454,45454,"2023-09-07","الخميس",45173.350276504629]
[153,"باص نيسان","2023-09-07",{"$f":"IF(C15<>\"\",TEXT(C15,\"ddd\"),\"\")","v":"الخميس"},45173.351099537038,null,1,null,null,null,0,"","",""]
[null,"",{"$f":"IF(A16>1,TODAY(),\"\")","v":""},"",{"$f":"IF(C16<>\"\",IF(E16=\"\",NOW(),E16),\"\")","v":""},null,null,null,null,null,0,"",null,""]
[96,"جالنت",{"$f":"IF(A17>1,NOW(),\"\")","v":"2023-09-07T12:25:29.820"},"الخميس",45173.351099537038,null,null,null,null,null,0,"",null,""]
[96,"جالنت",{"$f":"IF(A18>1,NOW(),\"\")","v":"2023-09-07T12:25:29.820"},"الخميس",45173.351162384257,null,null,null,null,14,14,"2023-09-07",null,45155.553975115741]
[null,"","","","",null,null,null,null,null,0]
[96,"جالنت","2023-09-05","الثلاثاء","16:33:00",null,null,null,null,null,0]
[null,"","","","",null,null,null,null,null,0]
[1,2,"1900-01-03","1900-01-04",5,6,7,8,9,10,1,"2023-09-05","الثلاثاء","16:38:00"]
[null,"",null,null,null,null,7,8,9,10,1,"2023-09-05","الثلاثاء","16:43:00"]
[111,"برادو","2023-09-05","الثلاثاء","16:45:00",null,null,8,9,10,1,"2023-09-05","الثلاثاء","16:43:00"]
[null,"",null,null,null,null,null,null,9,9,-9,"2023-09-05","الثلاثاء","16:41:00"]
[null,"",null,null,null,null,null,null,9,6,-3,"2023-09-05","الثلاثاء","16:38:00"]
[null,"",null,null,null,null,"b",null,null,null,0]
[null,"",null,null,null,null,null,null,null,null,0]
[null,"",null,null,null,null,null,null,60,10,-50,"2023-09-05","الثلاثاء","16:43:00"]
[null,"",null,null,null,null,null,null,50,60,10,"2023-09-05","الثلاثاء","16:46:00"]
[null,"",null,null,null,null,null,null,null,null,0]
[null,"",null,null,null,null,null,null,null,null,0]
[null,"",null,null,null,null,null,null,null,null,0]
[null,"",null,null,null,null,null,null,null,null,0]
[null,"",null,null,null,null,null,null,null,null,0]
[null,"",null,null,null,null,null,null,null,null,0]
[null,"",null,null,null,null,null,null,null,null,0]
[null,"",null,null,null,null,null,null,null,null,0]
[null,"",null,null,null,null,null,null,null,null,0]
[null,"",null,null,null,null,null,null,null,null,0]
[null,"",null,null,null,null,null,null,null,null,0]
[null,"",null,null,null,null,null,null,null,null,0]
[null,"",null,null,null,null,null,null,null,null,0]
[null,"",null,null,null,null,null,null,null,null,0]
[null,"",null,null,null,null,null,null,null,null,0]
[null,"",null,null,null,null,null,null,null,null,0]
[null,"",null,null,null,null,null,null,null,null,0]
[null,"",null,null,null,null,null,null,null,null,0]
[null,"",null,null,null,null,null,null,null,null,0]
[null,"",null,null,null,null,null,null,null,null,0]
[null,"",null,null,null,null,null,null,null,null,0]
[null,"",null,null,null,null,null,null,null,null,0]
[null,"",null,null,null,null,null,null,null,null,0]
[null,"",null,null,null,null,null,null,null,null,0]
[null,"",null,null,null,null,null,null,null,null,0]
[null,"",null,null,null,null,null,null,null,null,0]
[null,"",null,null,null,null,null,null,null,null,0]
[null,"",null,null,null,null,null,null,null,null,0]
[null,"",null,null,null,null,null,null,null,null,0]
[null,"",null,null,null,null,null,null,null,null,0]
[null,"",null,null,null,null,null,null,null,null,0]
[null,"",null,null,null,null,null,null,null,null,0]
[null,"",null,null,null,null,null,null,null,null,0]
[null,"",null,null,null,null,null,null,null,null,0]
[null,"",null,null,null,null,null,null,null,null,0]
[null,"",null,null,null,null,null,null,null,null,0]
[null,"",null,null,null,null,null,null,null,null,0]
[null,{"$f":"IF(A68=65,\"بيكاب نيسان\",IF(A68=93,\"برادو\",IF(A68=96,\"جالنت\",IF(A68=97,\"برادو\",IF(A68=111,\"برادو\",IF(A68=116,\"نيسان بافندر\",IF(A68=118,\"كرولا\",IF(A68=125,\"نيسان بافندر\",IF(A68=134,\"بيكاب مستوبيشي\",IF(A68=153,\"باص نيسان\",IF(A68=162,\"ابيكاء شفروليه\",IF(A68=233,\"كيا سوبرتاج\",IF(A68=267,\"باص تويوتا\",\"\")))))))))))))","v":""},null,null,null,null,null,null,null,null,{"$f":"J68-I68","v":0}]
[null,"",null,null,null,null,null,null,null,null,0]
[null,"",null,null,null,null,null,null,null,null,0]
[null,"",null,null,null,null,null,null,null,null,0]
[null,"",null,null,null,null,null,null,null,null,0]
[null,"",null,null,null,null,null,null,null,null,0]
[null,"",null,null,null,null,null,null,null,null,0]
[null,"",null,null,null,null,null,null,null,null,0]
[null,"",null,null,null,null,null,null,null,null,0]
[null,"",null,null,null,null,null,null,null,null,0]
[null,"",null,null,null,null,null,null,null,null,0]
[null,"",null,null,null,null,null,null,null,null,0]
[null,"",null,null,null,null,null,null,null,null,0]
[null,"",null,null,null,null,null,null,null,null,0]
[null,"",null,null,null,null,null,null,null,null,0]
[null,"",null,null,null,null,null,null,null,null,0]
[null,"",null,null,null,null,null,null,null,null,0]
[null,"",null,null,null,null,null,null,null,null,0]
[null,"",null,null,null,null,null,null,null,null,0]
[null,"",null,null,null,null,null,null,null,null,0]
[null,"",null,null,null,null,null,null,null,null,0]
[null,"",null,null,null,null,null,null,null,null,0]
[null,"",null,null,null,null,null,null,null,null,0]
[null,"",null,null,null,null,null,null,null,null,0]
[null,"",null,null,null,null,null,null,null,null,0]
[null,"",null,null,null,null,null,null,null,null,0]
[null,"",null,null,null,null,null,null,null,null,0]
[null,"",null,null,null,null,null,null,null,null,0]
[null,"",null,null,null,null,null,null,null,null,0]
[null,"",null,null,null,null,null,null,null,null,0]
[null,"",null,null,null,null,null,null,null,null,0]
[null,"",null,null,null,null,null,null,null,null,0]
[null,"",null,null,null,null,null,null,null,null,0]
[null,"",null,null,null,null,null,null,null,null,0]
[null,"",null,null,null,null,null,null,null,null,0]
[null,"",null,null,null,null,null,null,null,null,0]
[null,"",null,null,null,null,null,null,null,null,0]
[null,"",null,null,null,null,null,null,null,null,0]
[null,"",null,null,null,null,null,null,null,null,0]
[null,"",null,null,null,null,null,null,null,null,0]
[null,"",null,null,null,null,null,null,null,null,0]
[null,"",null,null,null,null,null,null,null,null,0]
[null,"",null,null,null,null,null,null,null,null,0]
[null,"",null,null,null,null,null,null,null,null,0]
[null,"",null,null,null,null,null,null,null,null,0]
[null,"",null,null,null,null,null,null,null,null,0]
[null,"",null,null,null,null,null,null,null,null,0]
[null,"",null,null,null,null,null,null,null,null,0]
[null,"",null,null,null,null,null,null,null,null,0]
[null,"",null,null,null,null,null,null,null,null,0]
[null,"",null,null,null,null,null,null,null,null,0]
[null,"",null,null,null,null,null,null,null,null,0]
[null,"",null,null,null,null,null,null,null,null,0]
[null,"",null,null,null,null,null,null,null,null,0]
[null,"",null,null,null,null,null,null,null,null,0]
[null,"",null,null,null,null,null,null,null,null,0]
[null,"",null,null,null,null,null,null,null,null,0]
[null,"",null,null,null,null,null,null,null,null,0]
[null,"",null,null,null,null,null,null,null,null,0]
[null,"",null,null,null,null,null,null,null,null,0]
[null,"",null,null,null,null,null,null,null,null,0]
[null,"",null,null,null,null,null,null,null,null,0]
[null,"",null,null,null,null,null,null,null,null,0]
[null,"",null,null,null,null,null,null,null,null,0]
[null,{"$f":"IF(A132=65,\"بيكاب نيسان\",IF(A132=93,\"برادو\",IF(A132=96,\"جالنت\",IF(A132=97,\"برادو\",IF(A132=111,\"برادو\",IF(A132=116,\"نيسان بافندر\",IF(A132=118,\"كرولا\",IF(A132=125,\"نيسان بافندر\",IF(A132=134,\"بيكاب مستوبيشي\",IF(A132=153,\"باص نيسان\",IF(A132=162,\"ابيكاء شفروليه\",IF(A132=233,\"كيا سوبرتاج\",IF(A132=267,\"باص تويوتا\",\"\")))))))))))))","v":""},null,null,null,null,null,null,null,null,{"$f":"J132-I132","v":0}]
[null,"",null,null,null,null,null,null,null,null,0]
[null,"",null,null,null,null,null,null,null,null,0]
[null,"",null,null,null,null,null,null,null,null,0]
[null,"",null,null,null,null,null,null,null,null,0]
[null,"",null,null,null,null,null,null,null,null,0]
[null,"",null,null,null,null,null,null,null,null,0]
[null,"",null,null,null,null,null,null,null,null,0]
[null,"",null,null,null,null,null,null,null,null,0]
[null,"",null,null,null,null,null,null,null,null,0]
[null,"",null,null,null,null,null,null,null,null,0]
[null,"",null,null,null,null,null,null,null,null,0]
[null,"",null,null,null,null,null,null,null,null,0]
[null,"",null,null,null,null,null,null,null,null,0]
[null,"",null,null,null,null,null,null,null,null,0]
[null,"",null,null,null,null,null,null,null,null,0]
[null,"",null,null,null,null,null,null,null,null,0]
[null,"",null,null,null,null,null,null,null,null,0]
[null,"",null,null,null,null,null,null,null,null,0]
[null,"",null,null,null,null,null,null,null,null,0]
[null,"",null,null,null,null,null,null,null,null,0]
[null,"",null,null,null,null,null,null,null,null,0]
[null,"",null,null,null,null,null,null,null,null,0]
[null,"",null,null,null,null,null,null,null,null,0]
[null,"",null,null,null,null,null,null,null,null,0]
[null,"",null,null,null,null,null,null,null,null,0]
[null,"",null,null,null,null,null,null,null,null,0]
[null,"",null,null,null,null,null,null,null,null,0]
[null,"",null,null,null,null,null,null,null,null,0]
[null,"",null,null,null,null,null,null,null,null,0]
[null,"",null,null,null,null,null,null,null,null,0]
[null,"",null,null,null,null,null,null,null,null,0]
[null,"",null,null,null,null,null,null,null,null,0]
[null,"",null,null,null,null,null,null,null,null,0]
[null,"",null,null,null,null,null,null,null,null,0]
[null,"",null,null,null,null,null,null,null,null,0]
[null,"",null,null,null,null,null,null,null,null,0]
[null,"",null,null,null,null,null,null,null,null,0]
[null,"",null,null,null,null,null,null,null,null,0]
[null,"",null,null,null,null,null,null,null,null,0]
[null,"",null,null,null,null,null,null,null,null,0]
[null,"",null,null,null,null,null,null,null,null,0]
[null,"",null,null,null,null,null,null,null,null,0]
[null,"",null,null,null,null,null,null,null,null,0]
[null,"",null,null,null,null,null,null,null,null,0]
[null,"",null,null,null,null,null,null,null,null,0]
[null,"",null,null,null,null,null,null,null,null,0]
[null,"",null,null,null,null,null,null,null,null,0]
[null,"",null,null,null,null,null,null,null,null,0]
[null,"",null,null,null,null,null,null,null,null,0]
[null,"",null,null,null,null,null,null,null,null,0]
[null,"",null,null,null,null,null,null,null,null,0]
[null,"",null,null,null,null,null,null,null,null,0]
[null,"",null,null,null,null,null,null,null,null,0]
[null,"",null,null,null,null,null,null,null,null,0]
[null,"",null,null,null,null,null,null,null,null,0]
[null,"",null,null,null,null,null,null,null,null,0]
[null,"",null,null,null,null,null,null,null,null,0]
[null,"",null,null,null,null,null,null,null,null,0]
[null,"",null,null,null,null,null,null,null,null,0]
[null,"",null,null,null,null,null,null,null,null,0]
[null,"",null,null,null,null,null,null,null,null,0]
[null,"",null,null,null,null,null,null,null,null,0]
[null,"",null,null,null,null,null,null,null,null,0]
[null,{"$f":"IF(A196=65,\"بيكاب نيسان\",IF(A196=93,\"برادو\",IF(A196=96,\"جالنت\",IF(A196=97,\"برادو\",IF(A196=111,\"برادو\",IF(A196=116,\"نيسان بافندر\",IF(A196=118,\"كرولا\",IF(A196=125,\"نيسان بافندر\",IF(A196=134,\"بيكاب مستوبيشي\",IF(A196=153,\"باص نيسان\",IF(A196=162,\"ابيكاء شفروليه\",IF(A196=233,\"كيا سوبرتاج\",IF(A196=267,\"باص تويوتا\",\"\")))))))))))))","v":""},null,null,null,null,null,null,null,null,{"$f":"J196-I196","v":0}]
[null,"",null,null,null,null,null,null,null,null,0]
[null,""]
[null,""]